bitfinex/quotes_SOLUSD_20240808
["timestamp","ask_amount","ask_price","bid_price","bid_amount"]
[1723152238866,16.2463,157.01,156.93,1.26376251]
[1723152239077,18.8800511,157.01,156.95,6.3714]
[1723152239279,18.8800511,157.01,156.97,6.3705]
[1723152239471,18.8800511,157.01,156.97,7.63329958]
[1723152239670,18.8800511,157.01,156.94,1.26285039]
[1723152239969,25.2490511,157.01,156.96,22.298]
[1723152240172,6.3694,157.0,156.96,22.298]
[1723152240780,6.3694,157.0,156.96,15.9271]
[1723152241391,6.3698,156.99,156.96,15.9271]
[1723152244195,6.3698,156.99,156.95,6.3712]
[1723152246676,6.3698,156.99,156.94,6.3717]
[1723152249989,18.8800511,157.01,156.93,6.0768]
[1723152250196,45.0,157.0,156.88,22.3208]
[1723152250492,6.3711,156.96,156.91,6.3729]
[1723152251202,6.3715,156.95,156.91,6.3729]
[1723152251410,6.371,156.96,156.92,6.3726]
[1723152251590,6.3707,156.97,156.92,6.3726]
[1723152251894,6.3712,156.96,156.91,22.3052]
[1723152258501,6.3715,156.95,156.91,22.3052]
[1723152260307,6.3719,156.94,156.89,6.3735]
[1723152260492,6.3714,156.95,156.88,44.89479414]
[1723152260801,6.3714,156.95,156.91,6.3729]
[1723152261794,6.3711,156.96,156.91,6.3729]
[1723152266298,6.3711,156.96,156.92,6.3725]
[1723152268502,6.3707,156.97,156.92,6.3725]
[1723152270021,1.59289306,157.0,156.9,22.3062]
[1723152270022,15.9251,156.99,156.9,22.3062]
[1723152270376,6.3711,156.96,156.92,6.3725]
[1723152270786,6.3711,156.96,156.91,6.3729]
[1723152278706,6.3707,156.97,156.9,15.9331]
[1723152278907,6.3699,156.99,156.94,6.3717]
[1723152279108,18.86029291,157.01,156.95,1.26301923]
[1723152279295,6.3697,157.0,156.95,6.3711]
[1723152279492,6.3697,157.0,156.96,1.26299636]
[1723152279788,6.3695,157.0,156.96,7.63389636]
[1723152279998,6.3691,157.01,156.97,6.3706]
[1723152280200,6.3691,157.01,156.98,1.26266781]
[1723152280511,6.3694,157.0,156.96,6.3709]
[1723152282406,6.3694,157.0,156.95,6.3713]
[1723152288123,6.3699,156.99,156.95,6.3713]
[1723152290724,6.3699,156.99,156.95,5.8713]
[1723152296735,6.3695,157.0,156.95,5.8713]
[1723152297024,34.03199683,157.05,156.94,22.3006]
[1723152297025,6.3698,156.99,156.94,22.3006]
[1723152297327,15.921,157.03,156.94,15.9289]
[1723152297733,6.3697,157.0,156.95,6.3714]
[1723152299128,6.3698,156.99,156.95,6.3714]
[1723152300414,6.3695,157.0,156.95,6.3714]
[1723152301333,15.921,157.03,156.93,23.1869]
[1723152301531,45.0,157.02,156.93,23.1869]
[1723152302413,6.3706,156.97,156.93,29.559]
[1723152304130,5.8706,156.97,156.93,29.559]
[1723152304324,6.3703,156.98,156.94,6.3716]
[1723152304524,6.3703,156.98,156.94,5.8716]
[1723152306826,6.3699,156.99,156.94,5.8716]
[1723152308222,15.9232,157.01,156.93,23.1869]
[1723152308519,15.9232,157.01,156.93,29.559]
[1723152308520,6.3709,156.97,156.93,29.559]
[1723152308921,6.3709,156.97,156.93,13.0029]
[1723152311321,6.3703,156.98,156.93,14.26669601]
[1723152311644,6.3703,156.98,156.93,13.0029]
[1723152312316,6.3708,156.97,156.93,6.6308]
[1723152312817,45.0,157.02,156.9,6.6323717]
[1723152312818,6.3721,156.94,156.9,6.6323717]
[1723152313144,6.371,156.96,156.91,6.3727]
[1723152314537,6.3707,156.97,156.91,15.9321]
[1723152314741,6.3707,156.97,156.92,1.26377268]
[1723152314917,6.3707,156.97,156.92,6.3725]
[1723152315118,6.3711,156.96,156.91,22.305]
[1723152315422,6.3711,156.96,156.92,6.3725]
[1723152316135,6.3711,156.96,156.91,22.305]
[1723152316444,6.3716,156.95,156.91,22.305]
[1723152316617,6.3719,156.94,156.89,34.38346091]
[1723152317551,6.3719,156.94,156.9,6.3734]
[1723152319635,6.3715,156.95,156.9,6.3734]
[1723152322143,1.59307512,156.97,156.89,21.3709]
[1723152322351,46.59330929,156.97,156.89,6.2961]
[1723152322523,6.3723,156.93,156.89,6.2961]
[1723152322723,6.3723,156.93,156.88,6.3742]
[1723152326240,6.3729,156.92,156.87,23.1247617]
[1723152327548,6.3729,156.92,156.88,6.3742]
[1723152328442,6.3723,156.93,156.88,6.3742]
[1723152331444,18.31577118,157.0,156.9,22.149]
[1723152331445,6.3717,156.95,156.9,22.149]
[1723152331629,2.6177534,156.95,156.91,6.373]
[1723152331827,6.3711,156.96,156.91,7.63746838]
[1723152332419,31.705,157.0,156.92,6.3723]
[1723152332420,6.3706,156.97,156.92,6.3723]
[1723152332625,31.705,157.0,156.9,22.149]
[1723152332825,6.3722,156.94,156.9,22.149]
[1723152333031,34.34311599,157.0,156.9,28.5224]
[1723152333032,6.3715,156.95,156.9,28.5224]
[1723152334025,6.3715,156.95,156.91,6.373]
[1723152334227,2.63811599,157.0,156.92,23.68962127]
[1723152334431,6.3706,156.97,156.92,23.68962127]
[1723152336652,6.3711,156.96,156.92,17.31722127]
[1723152337032,6.3711,156.96,156.92,22.4255]
[1723152337227,15.9252,156.99,156.9,6.2154]
[1723152337433,6.3722,156.94,156.9,6.2154]
[1723152337628,6.3722,156.94,156.9,12.5888]
[1723152337833,6.3715,156.95,156.9,12.5888]
[1723152339539,6.371,156.97,156.92,6.3724]
[1723152339853,6.3711,156.96,156.92,6.3724]
[1723152340234,6.3711,156.96,156.91,6.3729]
[1723152340935,6.3714,156.95,156.91,6.3729]
[1723152341134,6.3714,156.95,156.9,28.5216]
[1723152345557,2.59912102,156.97,156.9,6.2154]
[1723152345780,6.3719,156.94,156.9,6.2154]
[1723152348260,6.3719,156.94,156.9,12.5888]
[1723152348843,6.3722,156.93,156.9,6.2154]
[1723152349369,6.3727,156.92,156.9,6.2154]
[1723152350159,6.3727,156.92,156.88,15.9016]
[1723152351659,33.85872693,156.98,156.9,6.3733]
[1723152351960,33.85872693,156.98,156.89,15.9339]
[1723152352160,6.3722,156.94,156.89,22.3076]
[1723152352664,6.3723,156.93,156.89,22.3076]
[1723152353361,6.3723,156.93,156.89,15.9339]
[1723152356469,6.3727,156.92,156.89,15.9339]
[1723152356657,6.3727,156.92,156.88,22.2758]
[1723152356858,6.3727,156.92,156.88,15.9016]
[1723152357769,6.3727,156.92,156.87,7.1886617]
[1723152359673,15.928,156.96,156.87,7.1886617]
[1723152360163,6.3727,156.92,156.87,7.1886617]
[1723152361282,15.9308,156.93,156.87,0.8141617]
[1723152361450,6.3731,156.91,156.87,0.8141617]
[1723152362160,6.3726,156.92,156.87,7.1884617]
[1723152364871,6.3726,156.92,156.88,6.3742]
[1723152365066,15.9281,156.96,156.88,6.3742]
[1723152365067,6.3723,156.93,156.88,6.3742]
[1723152365259,8.94752393,156.93,156.88,6.3742]
[1723152367471,6.3728,156.92,156.88,6.3742]
[1723152372975,2.59249347,156.93,156.89,6.3738]
[1723152373167,6.3723,156.93,156.87,16.7501617]
[1723152373368,6.3727,156.92,156.88,6.3739]
[1723152380903,6.3738,156.9,156.87,0.8141617]
[1723152381071,2.62282277,156.93,156.87,0.8141617]
[1723152381399,15.9298,156.94,156.87,7.1887617]
[1723152381568,6.3729,156.92,156.87,7.1887617]
[1723152383977,6.3734,156.91,156.87,0.8141617]
[1723152384881,6.3734,156.91,156.87,7.1887617]
[1723152386893,6.3742,156.88,156.87,0.8141617]
[1723152387080,6.3742,156.88,156.86,6.0236]
[1723152387883,6.3743,156.88,156.84,15.2578]
[1723152388490,6.3743,156.88,156.84,21.6337]
[1723152389499,6.3743,156.88,156.84,15.2578]
[1723152392092,6.3743,156.88,156.84,21.6336]
[1723152394170,6.3743,156.88,156.83,15.9402]
[1723152394379,6.3742,156.89,156.85,6.3754]
[1723152394575,6.3742,156.89,156.84,6.3758]
[1723152395696,6.3743,156.88,156.84,6.3758]
[1723152395911,6.374,156.89,156.84,6.3758]
[1723152396108,6.374,156.89,156.85,6.3753]
[1723152399375,6.374,156.89,156.84,7.64181773]
[1723152400895,6.3743,156.88,156.84,1.26601773]
[1723152401974,6.3743,156.88,156.84,7.64181773]
[1723152405001,6.3743,156.88,156.83,22.3164]
[1723152406680,6.3747,156.87,156.83,23.58216453]
[1723152409114,6.3747,156.87,156.83,22.3164]
[1723152413384,6.3747,156.87,156.84,1.26589094]
[1723152413935,6.3747,156.87,156.83,22.3164]
[1723152414206,6.3747,156.87,156.84,1.26589187]
[1723152415119,6.3747,156.87,156.85,1.26577545]
[1723152416007,6.3747,156.87,156.84,1.26573904]
[1723152417418,6.3747,156.87,156.83,15.9402]
[1723152420920,6.3751,156.86,156.83,15.9402]
[1723152421125,6.3751,156.86,156.84,1.26575326]
[1723152422103,6.3751,156.86,156.83,1.26608276]
[1723152423021,6.3751,156.86,156.82,6.4964]
[1723152424031,6.3751,156.86,156.82,12.873]
[1723152424408,6.3751,156.86,156.83,1.26620904]
[1723152427117,6.3751,156.86,156.82,12.873]
[1723152432326,6.3748,156.87,156.82,12.873]
[1723152435125,6.3748,156.87,156.83,6.3762]
[1723152438735,6.3743,156.88,156.83,6.3762]
[1723152440529,6.3753,156.86,156.82,22.3179]
[1723152440738,6.3752,156.86,156.82,15.9413]
[1723152442636,6.3752,156.86,156.82,22.318]
[1723152443119,20.28043703,156.89,156.81,6.63673935]
[1723152444435,6.3759,156.84,156.81,6.63673935]
[1723152445732,7.97069443,156.83,156.81,6.63673935]
[1723152447445,7.97069443,156.83,156.79,15.9443]
[1723152448015,7.97069443,156.83,156.79,22.3221]
[1723152448214,7.97069443,156.83,156.79,15.9443]
[1723152450244,15.9364,156.88,156.77,6.3786]
[1723152450245,6.377,156.82,156.77,6.3786]
[1723152451023,6.377,156.82,156.78,6.3783]
[1723152451636,6.3772,156.81,156.77,6.3787]
[1723152452322,6.3772,156.81,156.76,22.3268]
[1723152453259,6.3768,156.82,156.77,6.3785]
[1723152456121,6.3768,156.82,156.78,6.3782]
[1723152457241,9.01100542,156.82,156.78,6.3782]
[1723152458644,6.3771,156.81,156.77,6.3787]
[1723152465649,15.4093,156.84,156.81,6.3767]
[1723152465843,15.4093,156.84,156.81,15.9418]
[1723152466042,15.4093,156.84,156.8,6.3774]
[1723152466446,21.7852,156.84,156.79,7.64489364]
[1723152467054,21.7796,156.88,156.82,18.77]
[1723152467244,15.405,156.88,156.84,6.3759]
[1723152467448,15.405,156.88,156.8,6.6324]
[1723152467639,6.3754,156.86,156.8,6.6324]
[1723152467845,6.3747,156.87,156.82,18.77]
[1723152468038,6.3747,156.87,156.83,1.26616862]
[1723152468562,6.3747,156.87,156.82,18.77]
[1723152468950,6.3747,156.87,156.83,18.77]
[1723152470040,6.3747,156.87,156.82,18.77]
[1723152471155,6.3747,156.87,156.83,1.26617576]
[1723152471362,6.3751,156.86,156.83,1.26617576]
[1723152471562,16.6410046,156.9,156.84,18.77]
[1723152471861,22.1522,156.92,156.85,1.26565871]
[1723152472047,15.8208,156.92,156.85,20.03565871]
[1723152472441,15.8208,156.92,156.86,1.26565877]
[1723152472761,6.3735,156.9,156.86,1.26565877]
[1723152473739,6.373,156.91,156.86,31.4937]
[1723152473944,6.3729,156.92,156.87,25.1444]
[1723152474144,6.3729,156.92,156.88,1.26457743]
[1723152474743,6.3723,156.93,156.88,25.1442]
[1723152474949,6.3723,156.93,156.89,1.26431177]
[1723152475144,6.3723,156.93,156.9,1.26420989]
[1723152475349,6.3728,156.92,156.9,1.26420989]
[1723152475867,6.3728,156.92,156.88,18.77]
[1723152476366,6.3728,156.92,156.89,1.26439861]
[1723152476567,6.3728,156.92,156.9,1.26436734]
[1723152477750,6.3723,156.93,156.9,1.26436734]
[1723152477946,6.3723,156.93,156.9,20.03436734]
[1723152478369,6.3723,156.93,156.9,1.26436734]
[1723152480068,18.75514659,156.97,156.9,20.03436734]
[1723152480368,6.3715,156.95,156.9,18.77]
[1723152480582,6.3711,156.96,156.92,18.77]
[1723152480868,6.3711,156.96,156.93,1.26359676]
[1723152482650,6.3714,156.95,156.93,1.26359676]
[1723152483063,6.3714,156.95,156.92,1.26373788]
[1723152483259,6.3714,156.95,156.92,20.03373788]
[1723152483567,6.371,156.96,156.92,18.77]
[1723152483762,6.371,156.96,156.93,18.77]
[1723152483955,6.3707,156.97,156.93,18.77]
[1723152484354,6.3707,156.97,156.93,20.0332529]
[1723152484572,6.3707,156.97,156.93,1.2632529]
[1723152484970,6.3707,156.97,156.94,18.77]
[1723152485171,6.3707,156.97,156.95,1.26319931]
[1723152485370,6.3707,156.97,156.96,1.26320625]
[1723152486173,6.3707,156.97,156.94,1.26324303]
[1723152486678,6.3703,156.98,156.94,1.26324303]
[1723152487174,6.3703,156.98,156.94,20.03324303]
[1723152487376,6.3703,156.98,156.94,26.40504303]
[1723152487972,16.48142918,157.01,156.95,15.0265]
[1723152488175,25.1426,157.12,157.1,6.3652]
[1723152488473,15.1476,157.23,157.11,18.77]
[1723152488474,16.34385426,157.22,157.11,18.77]
[1723152488664,15.1476,157.23,157.15,6.3629]
[1723152488871,15.1476,157.23,157.17,6.3623]
[1723152489065,15.1476,157.23,157.18,1.25740888]
[1723152489274,8.90065808,157.25,157.18,7.61920888]
[1723152489598,0.8141617,157.26,157.18,6.362]
[1723152489883,6.3601,157.23,157.18,6.362]
[1723152490077,3.32792903,157.26,157.18,6.362]
[1723152490277,0.8141617,157.26,157.19,7.61868955]
[1723152490580,0.8141617,157.26,157.18,6.362]
[1723152491275,6.3598,157.24,157.18,6.362]
[1723152491494,6.3601,157.23,157.16,17.16416478]
[1723152491868,6.3601,157.23,157.16,15.9071]
[1723152492058,6.3601,157.23,157.16,34.6771]
[1723152492257,6.3601,157.23,157.17,6.3624]
[1723152492858,6.3605,157.22,157.17,6.3624]
[1723152493079,0.8141617,157.26,157.16,15.9071]
[1723152493463,6.3604,157.23,157.17,6.3625]
[1723152493887,0.8141617,157.26,157.16,15.9071]
[1723152494194,0.8141617,157.26,157.13,6.8476914]
[1723152494195,18.30188676,157.26,157.13,6.8476914]
[1723152495370,6.3621,157.19,157.13,6.3637]
[1723152495565,6.3622,157.18,157.13,6.3637]
[1723152497379,6.3621,157.18,157.13,6.3637]
[1723152499781,16.4355,157.17,157.13,6.3637]
[1723152500098,6.364,157.14,157.09,6.3657]
[1723152501182,6.3632,157.16,157.1,15.9124]
[1723152501385,6.3637,157.14,157.1,15.9124]
[1723152503389,6.3642,157.13,157.09,6.3654]
[1723152503576,6.3642,157.13,157.08,6.3658]
[1723152504268,16.4355,157.17,157.07,34.6861]
[1723152504269,16.4355,157.17,157.07,22.2826]
[1723152504789,6.3646,157.12,157.07,22.2826]
[1723152505566,15.6497,157.09,157.01,15.9221]
[1723152506084,6.3668,157.07,157.03,6.3681]
[1723152506586,6.3649,157.12,157.07,6.3665]
[1723152506964,6.3649,157.12,157.08,1.26019646]
[1723152507888,6.3649,157.12,157.08,7.62629646]
[1723152508071,6.3649,157.12,157.08,6.3661]
[1723152508275,6.3649,157.12,157.08,7.62630111]
[1723152508480,6.3649,157.12,157.07,7.62670156]
[1723152510789,6.3654,157.1,157.06,15.9174]
[1723152510994,6.3654,157.1,157.06,22.2843]
[1723152511493,6.3654,157.1,157.06,15.9174]
[1723152514874,15.6497,157.14,157.07,1.26048961]
[1723152515074,6.3646,157.12,157.07,7.62698961]
[1723152515275,6.3646,157.12,157.08,1.2602414]
[1723152515587,6.3649,157.11,157.08,1.2602414]
[1723152516196,6.3657,157.09,157.07,1.26024489]
[1723152516511,6.3654,157.1,157.06,6.3668]
[1723152516697,6.3654,157.1,157.07,1.26034707]
[1723152516994,6.3649,157.11,157.08,1.26026289]
[1723152517192,6.3648,157.12,157.08,1.26026289]
[1723152517378,6.3649,157.11,157.08,1.26026289]
[1723152519004,6.365,157.11,157.08,1.26024405]
[1723152519184,6.365,157.11,157.05,15.9178]
[1723152519386,6.365,157.11,157.05,17.17763381]
[1723152520383,6.365,157.11,157.07,6.3664]
[1723152521103,6.3646,157.12,157.07,6.3664]
[1723152521598,6.3649,157.11,157.07,6.3664]
[1723152521990,6.3649,157.11,157.05,22.2848]
[1723152522194,15.6497,157.14,157.06,1.25985491]
[1723152522195,6.3655,157.1,157.06,1.25985491]
[1723152523301,6.3655,157.1,157.06,7.62675491]
[1723152523474,6.3655,157.1,157.06,6.3669]
[1723152523681,6.3655,157.1,157.07,1.26034259]
[1723152524209,6.3658,157.09,157.05,6.3673]
[1723152524419,6.3654,157.1,157.05,6.3673]
[1723152527392,6.3654,157.1,157.04,15.9189]
[1723152527393,6.366,157.09,157.04,15.9189]
[1723152527598,6.3654,157.1,157.05,7.62784506]
[1723152528477,6.3658,157.09,157.05,1.26054506]
[1723152529034,6.3658,157.09,157.05,7.62784506]
[1723152529313,6.3654,157.1,157.05,7.62784506]
[1723152535714,5.8654,157.1,157.05,7.62784506]
[1723152536291,18.17259554,157.14,157.07,15.9164]
[1723152536487,6.3646,157.12,157.08,1.26003795]
[1723152538525,6.3651,157.11,157.08,1.26003795]
[1723152540817,6.3657,157.09,157.04,6.3674]
[1723152541194,6.3654,157.1,157.05,7.62795193]
[1723152541523,6.3659,157.09,157.05,6.3673]
[1723152541710,6.3659,157.09,157.04,6.3677]
[1723152542106,6.3659,157.09,157.05,6.3672]
[1723152544700,6.3659,157.09,157.06,1.2605788]
[1723152545017,34.08239554,157.14,157.05,15.9176]
[1723152545328,6.3652,157.11,157.06,6.3667]
[1723152545907,6.3652,157.11,157.07,1.26025541]
[1723152547196,6.365,157.11,157.07,6.3665]
[1723152548510,6.365,157.11,157.06,6.3668]
[1723152552001,6.3655,157.1,157.06,6.3668]
[1723152552896,6.3655,157.1,157.05,22.2848]
[1723152554012,6.3659,157.09,157.05,22.2848]
[1723152554216,6.3662,157.08,157.03,6.4864]
[1723152554511,5.0,157.11,157.03,12.8544]
[1723152554821,5.0,157.11,157.03,6.4864]
[1723152554822,6.3668,157.07,157.03,6.4864]
[1723152555202,6.367,157.06,157.03,6.4864]
[1723152555410,6.368,157.04,156.99,28.3027]
[1723152555834,6.3683,157.03,156.99,21.9333]
[1723152556023,6.3683,157.03,156.99,28.303]
[1723152556323,6.3679,157.04,156.99,28.303]
[1723152556721,15.0284,157.07,156.96,15.9272]
[1723152556722,6.369,157.01,156.96,15.9272]
[1723152557511,6.369,157.01,156.9,15.1596]
[1723152557512,6.3715,156.95,156.9,15.9335]
[1723152558328,6.3715,156.95,156.9,22.3069]
[1723152559110,6.372,156.94,156.9,15.9335]
[1723152560131,6.3726,156.92,156.89,6.0093]
[1723152560316,6.3719,156.94,156.89,12.3831]
[1723152560910,7.96551077,156.93,156.88,6.3742]
[1723152561111,6.3726,156.92,156.87,22.3113]
[1723152561432,2.5489175,156.97,156.88,6.3742]
[1723152561433,6.3725,156.93,156.88,6.3742]
[1723152564621,6.3725,156.93,156.89,6.3738]
[1723152564912,6.3719,156.94,156.89,6.3738]
[1723152565121,1.59331671,156.93,156.89,6.3738]
[1723152567319,15.9265,156.98,156.89,15.934]
[1723152567720,6.3713,156.96,156.91,6.3729]
[1723152568424,6.3715,156.95,156.9,6.3734]
[1723152573719,6.3719,156.94,156.9,6.3734]
[1723152574841,6.3723,156.93,156.89,15.934]
[1723152576142,18.49656884,156.98,156.88,6.374]
[1723152576143,6.3727,156.92,156.88,6.374]
[1723152576443,6.3735,156.9,156.86,22.3123]
[1723152577348,6.3731,156.91,156.86,22.3123]
[1723152582860,9.21961974,156.98,156.85,6.0093]
[1723152582861,16.3834,156.93,156.85,6.0093]
[1723152583062,6.3741,156.89,156.85,6.0093]
[1723152586034,6.3743,156.88,156.85,6.0093]
[1723152598748,15.9321,156.92,156.85,6.0093]
[1723152600365,6.3751,156.86,156.85,6.0093]
[1723152601264,6.3751,156.86,156.82,6.3766]
[1723152601462,6.376,156.84,156.81,6.1133]
[1723152601644,1.59379511,156.91,156.81,6.1133]
[1723152601848,6.3764,156.83,156.81,6.1133]
[1723152602059,6.3759,156.84,156.81,6.1133]
[1723152602260,6.3756,156.85,156.81,6.1133]
[1723152602668,6.3764,156.83,156.81,6.1133]
[1723152602965,6.3759,156.84,156.81,6.1133]
[1723152603370,6.3764,156.83,156.81,6.1133]
[1723152603558,15.9329,156.91,156.81,22.0556]
[1723152603760,20.0,156.9,156.81,22.0556]
[1723152604155,6.3758,156.85,156.81,22.0556]
[1723152604760,6.3767,156.82,156.81,6.1133]
[1723152604956,6.3767,156.82,156.78,6.3782]
[1723152605156,6.3767,156.82,156.77,43.563]
[1723152605345,6.3763,156.83,156.78,6.378]
[1723152605551,6.3763,156.83,156.79,1.2672858]
[1723152606266,6.3769,156.82,156.78,6.378]
[1723152608271,6.3769,156.82,156.77,43.563]
[1723152609155,6.3772,156.81,156.77,43.563]
[1723152609965,6.3772,156.81,156.77,28.3884]
[1723152610555,2.56017321,156.85,156.77,22.0098]
[1723152610757,6.3772,156.81,156.77,22.0098]
[1723152611476,6.3776,156.8,156.77,22.0098]
[1723152611656,6.3782,156.79,156.74,15.9494]
[1723152612966,6.3782,156.79,156.74,22.329]
[1723152613370,1.59452901,156.78,156.73,6.101]
[1723152613665,6.3792,156.76,156.71,23.1477617]
[1723152613865,6.38,156.74,156.71,0.8141617]
[1723152615267,6.3796,156.75,156.71,0.8141617]
[1723152615768,6.38,156.74,156.71,0.8141617]
[1723152616967,6.3804,156.73,156.71,0.8141617]
[1723152618274,6.3808,156.72,156.71,0.8141617]
[1723152620161,7.97620209,156.72,156.71,0.8141617]
[1723152620383,45.0,156.72,156.66,6.4678]
[1723152620597,6.3816,156.7,156.66,6.4678]
[1723152621170,6.3809,156.72,156.67,6.3825]
[1723152621591,6.3812,156.71,156.66,28.8085]
[1723152622166,17.92982363,156.73,156.66,28.8085]
[1723152622571,6.3815,156.71,156.66,28.8085]
[1723152622888,17.92982363,156.73,156.67,6.3827]
[1723152623484,6.3812,156.71,156.66,28.8085]
[1723152623790,6.3818,156.7,156.66,22.4254]
[1723152625774,6.382,156.69,156.66,6.4678]
[1723152628484,6.3808,156.72,156.66,6.4678]
[1723152628684,6.3802,156.74,156.69,6.3819]
[1723152628885,6.3802,156.74,156.66,6.4678]
[1723152628886,22.5045,156.8,156.75,6.3794]
[1723152629090,6.3783,156.78,156.73,22.3307]
[1723152629396,6.3788,156.77,156.73,15.9504]
[1723152629896,6.3792,156.76,156.72,14.05625087]
[1723152631374,18.69528984,156.8,156.73,6.3801]
[1723152631588,6.3786,156.78,156.74,1.26824278]
[1723152632699,6.3786,156.78,156.73,6.3801]
[1723152633999,6.3788,156.77,156.73,6.3801]
[1723152634202,2.58076674,156.81,156.74,7.64807053]
[1723152634402,31.1921,156.84,156.75,18.77]
[1723152634403,15.2518,156.84,156.75,18.77]
[1723152634699,6.3766,156.83,156.79,18.77]
[1723152634894,6.3759,156.84,156.8,1.26677853]
[1723152635096,6.3751,156.86,156.81,25.1471]
[1723152635272,6.3751,156.86,156.82,20.03611989]
[1723152635473,6.3751,156.86,156.83,1.26601531]
[1723152635676,15.9338,156.9,156.83,1.26601531]
[1723152635890,6.3754,156.86,156.83,1.26601531]
[1723152637896,6.3747,156.87,156.83,1.26601531]
[1723152639106,6.3751,156.86,156.83,1.26601531]
[1723152640300,15.9338,156.9,156.79,1.26594412]
[1723152640502,6.3762,156.84,156.79,6.3778]
[1723152641205,45.0,156.89,156.78,6.6607]
[1723152641378,45.0,156.89,156.79,1.26652583]
[1723152641580,45.0,156.89,156.8,1.26648553]
[1723152642402,6.3762,156.84,156.79,6.3778]
[1723152642603,6.3763,156.83,156.79,6.3778]
[1723152643285,6.3759,156.84,156.79,6.3778]
[1723152644805,15.9385,156.86,156.78,6.6607]
[1723152645011,45.0,156.85,156.78,6.6607]
[1723152645307,6.3772,156.81,156.78,6.6607]
[1723152645519,45.0,156.85,156.78,6.6607]
[1723152645804,60.751,156.85,156.78,6.6607]
[1723152645987,6.3779,156.79,156.74,28.4879]
[1723152647176,15.751,156.85,156.76,15.9473]
[1723152647385,6.3767,156.82,156.77,1.26674508]
[1723152647624,6.3763,156.83,156.78,6.3783]
[1723152647792,6.3768,156.82,156.77,6.3787]
[1723152647981,6.3764,156.83,156.78,6.378]
[1723152648314,6.3768,156.82,156.76,34.7173]
[1723152648604,6.3768,156.82,156.77,6.3786]
[1723152648793,6.3768,156.82,156.78,6.3782]
[1723152649501,6.3772,156.81,156.77,6.3787]
[1723152650697,6.3767,156.82,156.77,6.3787]
[1723152652510,6.3767,156.82,156.78,6.3782]
[1723152652903,6.3764,156.83,156.78,6.3782]
[1723152654710,6.376,156.84,156.79,6.3778]
[1723152654895,6.3756,156.85,156.8,6.3773]
[1723152655820,2.62663945,156.87,156.8,6.3773]
[1723152655993,6.3755,156.85,156.81,6.377]
[1723152656799,6.3759,156.84,156.8,6.3774]
[1723152659389,6.3759,156.84,156.79,6.3778]
[1723152659624,45.0,156.88,156.78,35.98194106]
[1723152659625,45.0,156.88,156.8,26.45423983]
[1723152659998,19.21771159,156.89,156.81,18.77]
[1723152660201,19.21771159,156.89,156.82,23.58412238]
[1723152660202,6.3752,156.86,156.82,23.58412238]
[1723152660400,6.3752,156.86,156.82,15.9414]
[1723152663223,6.3755,156.85,156.82,15.9414]
[1723152663428,6.3751,156.86,156.82,22.3181]
[1723152667415,6.3751,156.86,156.82,15.9414]
[1723152671807,35.15291159,156.89,156.8,6.4177]
[1723152672100,6.376,156.84,156.8,6.4177]
[1723152673127,6.376,156.84,156.8,12.7951]
[1723152674429,45.0,156.88,156.81,6.377]
[1723152674738,6.3754,156.86,156.81,6.377]
[1723152675428,6.3754,156.86,156.82,1.2663189]
[1723152676132,6.3754,156.86,156.81,6.377]
[1723152685254,13.04429965,156.93,156.81,6.377]
[1723152685255,6.65829965,156.93,156.89,16.2003]
[1723152685433,6.371,156.97,156.92,6.3726]
[1723152685623,6.371,156.97,156.93,1.26380719]
[1723152685823,6.3695,157.0,156.95,6.3711]
[1723152686130,6.3682,157.03,156.97,6.3703]
[1723152686332,6.3682,157.03,156.98,7.63280447]